fUST/lending_fUST_20250605
["ID","MTS","AMOUNT","RATE_DAILY","PERIOD"]
[364325611,1749070237119,-232.01185887,0.00018687,2]
[364325612,1749070237130,-440.0,0.00018687,2]
[364325613,1749070237141,-440.0,0.00018687,2]
[364325614,1749070237152,-767.16,0.00018687,2]
[364325615,1749070237162,-833.26,0.00018687,2]
[364325616,1749070237172,-258.64535147,0.00018688,2]
[364325617,1749070237183,-420.0,0.00018688,2]
[364325618,1749070237194,-420.0,0.00018688,2]
[364325619,1749070237205,-420.0,0.00018688,2]
[364325620,1749070237216,-420.0,0.00018688,2]
[364325621,1749070237227,-420.0,0.00018688,2]
[364325622,1749070237239,-420.0,0.00018688,2]
[364325623,1749070237250,-420.0,0.00018688,2]
[364325624,1749070237263,-414.09812731,0.00018688,2]
[364325625,1749070237278,-927.56,0.00018688,2]
[364325626,1749070237291,-420.0,0.00018688,2]
[364325627,1749070237304,-420.0,0.00018688,2]
[364325628,1749070237316,-420.0,0.00018688,2]
[364325629,1749070237328,-420.0,0.00018688,2]
[364325630,1749070237340,-420.0,0.00018688,2]
[364325631,1749070237352,-420.0,0.00018688,2]
[364325632,1749070237363,-420.0,0.00018688,2]
[364325633,1749070237375,-156.81607004,0.00018688,2]
[364325634,1749070237386,-420.0,0.00018688,2]
[364325635,1749070237398,-1362.11,0.00018688,2]
[364325636,1749070237409,-401.65195025,0.00018688,2]
[364325637,1749070237420,-420.0,0.00018688,2]
[364325640,1749070237570,-875.11,0.00018688,2]
[364325641,1749070237581,-420.0,0.00018688,2]
[364325643,1749070237590,-420.0,0.00018688,2]
[364325645,1749070237599,-420.0,0.00018688,2]
[364325646,1749070237608,-420.0,0.00018688,2]
[364325647,1749070237618,-420.0,0.00018688,2]
[364325648,1749070237626,-440.0,0.00018688,2]
[364325649,1749070237635,-401.74044434,0.00018688,2]
[364325650,1749070237644,-692.79,0.00018688,2]
[364325651,1749070237653,-440.0,0.00018688,2]
[364325652,1749070237663,-420.0,0.00018688,2]
[364325653,1749070237672,-420.0,0.00018688,2]
[364325654,1749070237682,-420.0,0.00018688,2]
[364325655,1749070237691,-1022.52,0.00018688,2]
[364325656,1749070237700,-420.0,0.00018688,2]
[364325657,1749070237709,-380.0,0.00018688,2]
[364325658,1749070237718,-420.0,0.00018688,2]
[364325659,1749070237727,-420.0,0.00018688,2]
[364325660,1749070237736,-463.31,0.00018688,2]
[364325661,1749070237744,-669.22,0.00018688,2]
[364325662,1749070237754,-420.0,0.00018688,2]
[364325663,1749070237763,-300.09621385,0.00018688,2]
[364325664,1749070237771,-420.0,0.00018688,2]
[364325665,1749070237780,-420.0,0.00018688,2]
[364325666,1749070237789,-420.0,0.00018688,2]
[364325667,1749070237798,-440.0,0.00018688,2]
[364325668,1749070237807,-420.0,0.00018688,2]
[364325669,1749070237816,-420.0,0.00018688,2]
[364325670,1749070237825,-420.0,0.00018688,2]
[364325671,1749070237834,-440.0,0.00018688,2]
[364325672,1749070237843,-420.0,0.00018688,2]
[364325673,1749070237852,-440.0,0.00018688,2]
[364325674,1749070237861,-440.0,0.00018688,2]
[364325675,1749070237870,-420.0,0.00018688,2]
[364325676,1749070237879,-420.0,0.00018688,2]
[364325677,1749070237888,-420.0,0.00018688,2]
[364325678,1749070237897,-420.0,0.00018688,2]
[364325679,1749070237906,-440.0,0.00018688,2]
[364325680,1749070237915,-440.0,0.00018688,2]
[364325681,1749070237923,-180.59198721,0.00018688,2]
[364325682,1749070237932,-420.0,0.00018688,2]
[364325683,1749070237941,-420.0,0.00018688,2]
[364325684,1749070237950,-420.0,0.00018688,2]
[364325685,1749070237959,-420.0,0.00018688,2]
[364325686,1749070237968,-420.0,0.00018688,2]
[364325687,1749070237977,-292.48712963,0.00018688,2]
[364325688,1749070237986,-440.0,0.00018688,2]
[364325689,1749070237995,-557.1,0.00018688,2]
[364325690,1749070238004,-420.0,0.00018688,2]
[364325691,1749070238012,-440.0,0.00018688,2]
[364325692,1749070238021,-440.0,0.00018688,2]
[364325693,1749070238030,-295.50014071,0.00018688,2]
[364325694,1749070238039,-440.0,0.00018688,2]
[364325695,1749070238048,-420.0,0.00018688,2]
[364325696,1749070238057,-420.0,0.00018688,2]
[364325697,1749070238066,-420.0,0.00018688,2]
[364325698,1749070238075,-420.0,0.00018688,2]
[364325699,1749070238084,-420.0,0.00018688,2]
[364325700,1749070238093,-420.0,0.00018688,2]
[364325701,1749070238103,-440.0,0.00018688,2]
[364325702,1749070238112,-420.0,0.00018688,2]
[364325703,1749070238121,-420.0,0.00018688,2]
[364325704,1749070238131,-420.0,0.00018688,2]
[364325705,1749070238140,-440.0,0.00018688,2]
[364325706,1749070238149,-420.0,0.00018688,2]
[364325707,1749070238159,-420.0,0.00018688,2]
[364325708,1749070238168,-440.0,0.00018688,2]
[364325709,1749070238177,-420.0,0.00018688,2]
[364325710,1749070238186,-430.0,0.00018688,2]
[364325711,1749070238195,-420.0,0.00018688,2]
[364325712,1749070238204,-420.0,0.00018688,2]
[364325713,1749070238214,-420.0,0.00018688,2]
[364325714,1749070238222,-420.0,0.00018688,2]
[364325715,1749070238231,-430.0,0.00018688,2]
[364325716,1749070238240,-420.0,0.00018688,2]
[364325717,1749070238249,-420.0,0.00018688,2]
[364325719,1749070238258,-420.0,0.00018688,2]
[364325720,1749070238267,-421.27786161,0.00018688,2]
[364325721,1749070238276,-420.0,0.00018689,2]
[364325722,1749070238285,-420.0,0.00018689,2]
[364325724,1749070238294,-420.0,0.00018689,2]
[364325726,1749070238304,-420.0,0.00018689,2]
[364325728,1749070238312,-420.0,0.00018689,2]
[364325730,1749070238322,-420.0,0.00018689,2]
[364325732,1749070238331,-566.35867665,0.00018689,2]
[364325734,1749070238340,-420.0,0.00018689,2]
[364325736,1749070238350,-420.0,0.00018689,2]
[364325738,1749070238359,-376.66,0.00018689,2]
[364325740,1749070238369,-420.0,0.00018689,2]
[364325742,1749070238378,-420.0,0.00018689,2]
[364325744,1749070238387,-220.64736513,0.00018689,2]
[364325746,1749070238397,-184.52727387,0.00018689,2]
[364325748,1749070238407,-420.0,0.00018689,2]
[364325750,1749070238416,-420.0,0.00018689,2]
[364325752,1749070238426,-420.0,0.00018689,2]
[364325754,1749070238436,-310.04501334,0.00018689,2]
[364325756,1749070238445,-413.52,0.00018689,2]
[364325758,1749070238454,-499.66720677,0.00018689,2]
[364325760,1749070238464,-420.0,0.00018689,2]
[364325762,1749070238473,-420.0,0.00018689,2]
[364325764,1749070238482,-450.0,0.00018689,2]
[364325766,1749070238492,-420.0,0.00018689,2]
[364325768,1749070238505,-440.0,0.00018689,2]
[364325770,1749070238516,-440.0,0.00018689,2]
[364325772,1749070238525,-440.0,0.00018689,2]
[364325774,1749070238535,-440.0,0.00018689,2]
[364325776,1749070238546,-440.0,0.00018689,2]
[364325778,1749070238555,-440.0,0.00018689,2]
[364325780,1749070238564,-440.0,0.00018689,2]
[364325782,1749070238574,-467.78863111,0.00018689,2]
[364325784,1749070238584,-420.0,0.00018689,2]
[364325786,1749070238592,-430.0,0.00018689,2]
[364325788,1749070238601,-420.0,0.00018689,2]
[364325790,1749070238612,-390.0,0.00018689,2]
[364325792,1749070238621,-420.0,0.00018689,2]
[364325794,1749070238630,-440.0,0.00018689,2]
[364325796,1749070238639,-420.0,0.00018689,2]
[364325798,1749070238648,-160.6009728,0.00018689,2]
[364325800,1749070238658,-440.0,0.00018689,2]
[364325802,1749070238668,-420.0,0.00018689,2]
[364325804,1749070238677,-420.0,0.00018689,2]
[364325806,1749070238686,-420.0,0.00018689,2]
[364325808,1749070238696,-420.0,0.00018689,2]
[364325810,1749070238705,-440.0,0.00018689,2]
[364325812,1749070238714,-422.12261426,0.00018689,2]
[364325814,1749070238724,-420.0,0.00018689,2]
[364325816,1749070238733,-420.0,0.00018689,2]
[364325818,1749070238742,-420.0,0.00018689,2]
[364325820,1749070238750,-440.0,0.00018689,2]
[364325822,1749070238759,-440.0,0.00018689,2]
[364325824,1749070238767,-420.0,0.00018689,2]
[364325826,1749070238777,-420.0,0.00018689,2]
[364325828,1749070238786,-420.0,0.00018689,2]
[364325830,1749070238796,-420.0,0.00018689,2]
[364325832,1749070238805,-440.0,0.00018689,2]
[364325834,1749070238814,-460.0,0.00018689,2]
[364325836,1749070238823,-207.0183802,0.00018689,2]
[364325838,1749070238832,-440.0,0.00018689,2]
[364325840,1749070238841,-420.0,0.00018689,2]
[364325842,1749070238850,-444.28102986,0.00018689,2]
[364325844,1749070238859,-420.0,0.00018689,2]
[364325846,1749070238870,-440.0,0.00018689,2]
[364325848,1749070238879,-440.0,0.00018689,2]
[364325850,1749070238888,-420.0,0.00018689,2]
[364325852,1749070238897,-420.0,0.00018689,2]
[364325854,1749070238906,-410.0,0.00018689,2]
[364325856,1749070238915,-420.0,0.00018689,2]
[364325858,1749070238924,-440.0,0.00018689,2]
[364325860,1749070238933,-420.0,0.00018689,2]
[364325862,1749070238943,-420.0,0.00018689,2]
[364325864,1749070238952,-420.0,0.00018689,2]
[364325866,1749070238961,-443.74075566,0.00018689,2]
[364325868,1749070238970,-420.0,0.00018689,2]
[364325870,1749070238980,-420.0,0.00018689,2]
[364325872,1749070238990,-430.0,0.00018689,2]
[364325874,1749070238999,-460.0,0.00018689,2]
[364325876,1749070239008,-440.0,0.00018689,2]
[364325878,1749070239018,-440.0,0.00018689,2]
[364325880,1749070239028,-420.0,0.00018689,2]
[364325882,1749070239037,-440.0,0.00018689,2]
[364325884,1749070239047,-420.0,0.00018689,2]
[364325886,1749070239056,-420.0,0.00018689,2]
[364325888,1749070239065,-921.95,0.00018689,2]
[364325890,1749070239075,-440.0,0.00018689,2]
[364325892,1749070239085,-562.29,0.00018689,2]
[364325894,1749070239094,-605.52,0.00018689,2]
[364325896,1749070239103,-420.0,0.00018689,2]
[364325898,1749070239112,-420.0,0.00018689,2]
[364325900,1749070239122,-420.0,0.00018689,2]
[364325902,1749070239131,-440.0,0.00018689,2]
[364325904,1749070239140,-151.02360114,0.00018689,2]
[364325906,1749070239150,-404.69145368,0.00018689,2]
[364325908,1749070239159,-442.30312318,0.00018689,2]
[364325910,1749070239169,-935.16,0.00018689,2]
[364325912,1749070239179,-440.0,0.00018689,2]
[364325914,1749070239188,-440.0,0.00018689,2]
[364325916,1749070239198,-440.0,0.00018689,2]
[364325918,1749070239207,-420.0,0.00018692,2]
[364325920,1749070239216,-420.0,0.00018692,2]
[364325922,1749070239225,-460.0,0.00018692,2]
[364325924,1749070239235,-440.26161383,0.00018693,2]
[364325926,1749070239244,-524.69,0.00018961,2]
[364325928,1749070239254,-587.02790375,0.00018961,2]
[364325930,1749070239263,-165.70428483,0.00018961,2]
[364325932,1749070239272,-440.0,0.00018961,2]
[364325934,1749070239281,-767.16,0.00018961,2]
[364325936,1749070239291,-833.26,0.00018961,2]
[364325938,1749070239300,-927.56,0.00018962,2]
[364325940,1749070239309,-1362.11,0.00018962,2]
[364325942,1749070239319,-875.11,0.00018962,2]
[364325944,1749070239328,-420.0,0.00018962,2]
[364325946,1749070239338,-692.79,0.00018962,2]
[364325947,1749070239348,-1022.52,0.00018962,2]
[364325949,1749070239357,-463.31,0.00018962,2]
[364325951,1749070239367,-669.22,0.00018962,2]
[364325953,1749070239376,-420.0,0.00018962,2]
[364325955,1749070239386,-440.0,0.00018962,2]
[364325957,1749070239395,-420.0,0.00018962,2]
[364325959,1749070239404,-440.0,0.00018962,2]
[364325960,1749070239414,-300.0,0.00018962,2]
[364325962,1749070239423,-422.07176566,0.00018962,2]
[364325963,1749070239432,-420.0,0.00018962,2]
[364325964,1749070239441,-557.1,0.00018962,2]
[364325965,1749070239452,-440.0,0.00018962,2]
[364325966,1749070239461,-420.0,0.00018962,2]
[364325967,1749070239471,-440.0,0.00018962,2]
[364325968,1749070239481,-440.0,0.00018962,2]
[364325969,1749070239491,-440.0,0.00018962,2]
[364325970,1749070239507,-440.0,0.00018962,2]
[364325971,1749070239516,-400.0,0.00018963,2]
[364325972,1749070239526,-420.0,0.00018963,2]
[364325973,1749070239535,-440.0,0.00018963,2]
[364325974,1749070239545,-440.0,0.00018963,2]
[364325975,1749070239554,-420.0,0.00018963,2]
[364325976,1749070239564,-499.55942677,0.00018963,2]
[364325977,1749070239573,-430.0,0.00018963,2]
[364325978,1749070239584,-420.0,0.00018963,2]
[364325979,1749070239594,-440.0,0.00018963,2]
[364325980,1749070239603,-440.0,0.00018963,2]
[364325981,1749070239614,-420.0,0.00018963,2]
[364325982,1749070239623,-420.0,0.00018963,2]
[364325983,1749070239633,-420.0,0.00018963,2]
[364325984,1749070239643,-420.0,0.00018963,2]
[364325985,1749070239653,-420.0,0.00018963,2]
[364325987,1749070239664,-410.0,0.00018963,2]
[364325988,1749070239674,-440.0,0.00018963,2]
[364325989,1749070239683,-225.03269999,0.00018963,2]
[364325990,1749070239692,-921.95,0.00018963,2]
[364325992,1749070239703,-440.0,0.00018963,2]
[364325993,1749070239712,-562.29,0.00018963,2]
[364325994,1749070239721,-605.52,0.00018963,2]
[364325995,1749070239731,-420.0,0.00018963,2]
[364325996,1749070239740,-935.16,0.00018963,2]
[364325997,1749070239749,-420.0,0.00018963,2]
[364325998,1749070239756,-420.0,0.00018963,2]
[364325999,1749070239765,-410.0,0.00018963,2]
[364326000,1749070239774,-500.0,0.00019054,2]
[364326001,1749070239783,-465.55619232,0.00019054,2]
[364326002,1749070239793,-646.24061561,0.00019071,2]
[364326003,1749070239803,-445.12511604,0.00019071,2]
[364326004,1749070239812,-174.469907,0.00019178,2]
[364326005,1749070239822,-524.69,0.00019235,2]
[364326006,1749070239831,-440.0,0.00019235,2]
[364326007,1749070239841,-767.16,0.00019235,2]
[364326008,1749070239851,-833.26,0.00019235,2]
[364326009,1749070239860,-927.56,0.00019236,2]
[364326010,1749070239870,-1362.11,0.00019236,2]
[364326011,1749070239879,-875.11,0.00019236,2]
[364326012,1749070239889,-692.79,0.00019236,2]
[364326013,1749070239899,-1022.52,0.00019236,2]
[364326014,1749070239908,-463.31,0.00019236,2]
[364326015,1749070239918,-669.22,0.00019236,2]
[364326016,1749070239927,-460.68,0.00019236,2]
[364326017,1749070239937,-440.0,0.00019236,2]
[364326018,1749070239947,-557.1,0.00019236,2]
[364326019,1749070239956,-440.0,0.00019236,2]
[364326020,1749070239965,-440.0,0.00019236,2]
[364326021,1749070239976,-359.70915768,0.00019236,2]
[364326022,1749070239986,-440.0,0.00019236,2]
[364326023,1749070239997,-440.0,0.00019236,2]
[364326024,1749070240006,-440.0,0.00019237,2]
[364326025,1749070240015,-480.16,0.00019237,2]
[364326026,1749070240025,-420.0,0.00019237,2]
[364326027,1749070240034,-157.3553811,0.00019237,2]
[364326028,1749070240044,-440.0,0.00019237,2]
[364326030,1749070240054,-921.95,0.00019237,2]
[364326032,1749070240062,-440.0,0.00019237,2]
[364326034,1749070240071,-562.29,0.00019237,2]
[364326036,1749070240080,-605.52,0.00019237,2]
[364326037,1749070240089,-935.16,0.00019237,2]
[364326039,1749070240099,-524.69,0.00019509,2]
[364326041,1749070240108,-535.37300411,0.00019509,2]
[364326043,1749070240118,-767.16,0.00019509,2]
[364326045,1749070240127,-833.26,0.00019509,2]
[364326047,1749070240137,-927.56,0.0001951,2]
[364326049,1749070240146,-1362.11,0.0001951,2]
[364326051,1749070240156,-875.11,0.0001951,2]
[364326053,1749070240165,-692.79,0.0001951,2]
[364326055,1749070240174,-1022.52,0.0001951,2]
[364326057,1749070240183,-463.31,0.0001951,2]
[364326059,1749070240193,-669.22,0.0001951,2]
[364326061,1749070240203,-476.45,0.0001951,2]
[364326063,1749070240212,-557.1,0.0001951,2]
[364326065,1749070240221,-440.0,0.0001951,2]
[364326077,1749070240327,-440.0,0.0001951,2]
[364326079,1749070240336,-440.0,0.0001951,2]
[364326081,1749070240346,-440.0,0.0001951,2]
[364326083,1749070240355,-440.0,0.00019511,2]
[364326085,1749070240366,-440.0,0.00019511,2]
[364326087,1749070240375,-921.95,0.00019511,2]
[364326089,1749070240384,-440.0,0.00019511,2]
[364326091,1749070240393,-562.29,0.00019511,2]
[364326093,1749070240402,-605.52,0.00019511,2]
[364326095,1749070240412,-935.16,0.00019511,2]
[364326097,1749070240421,-153.01138444,0.00019666,2]
[364326099,1749070240430,-524.69,0.00019783,2]
[364326101,1749070240440,-767.16,0.00019783,2]
[364326103,1749070240449,-833.26,0.00019783,2]
[364326105,1749070240458,-927.56,0.00019784,2]
[364326107,1749070240467,-1362.11,0.00019784,2]
[364326108,1749070240479,-875.11,0.00019784,2]
[364326110,1749070240489,-692.79,0.00019784,2]
[364326112,1749070240503,-1022.52,0.00019784,2]
[364326114,1749070240512,-463.31,0.00019784,2]
[364326116,1749070240522,-669.22,0.00019784,2]
[364326118,1749070240532,-557.1,0.00019784,2]
[364326120,1749070240542,-440.0,0.00019784,2]
[364326122,1749070240551,-230.49,0.00019784,2]
[364326124,1749070240561,-440.0,0.00019784,2]
[364326126,1749070240570,-440.0,0.00019784,2]
[364326128,1749070240584,-440.0,0.00019785,2]
[364326130,1749070240594,-440.0,0.00019785,2]
[364326132,1749070240603,-921.95,0.00019785,2]
[364326134,1749070240612,-440.0,0.00019785,2]
[364326136,1749070240621,-562.29,0.00019785,2]
[364326138,1749070240631,-605.52,0.00019785,2]
[364326140,1749070240640,-935.16,0.00019785,2]
[364326142,1749070240649,-363.187,0.00019822,2]
[364326144,1749070240659,-3021.62336577,0.000199,2]
[364326146,1749070240670,-524.69,0.00020057,2]
[364326148,1749070240680,-767.16,0.00020057,2]
[364326150,1749070240690,-833.26,0.00020057,2]
[364326152,1749070240699,-927.56,0.00020058,2]
[364326154,1749070240709,-1362.11,0.00020058,2]
[364326156,1749070240718,-875.11,0.00020058,2]
[364326158,1749070240727,-692.79,0.00020058,2]
[364326160,1749070240737,-1022.52,0.00020058,2]
[364326162,1749070240746,-463.31,0.00020058,2]
[364326164,1749070240757,-669.22,0.00020058,2]
[364326166,1749070240767,-557.1,0.00020058,2]
[364326168,1749070240776,-260.41,0.00020058,2]
[364326170,1749070240786,-440.0,0.00020058,2]
[364326172,1749070240795,-440.0,0.00020058,2]
[364326174,1749070240804,-440.0,0.00020059,2]
[364326176,1749070240814,-440.0,0.00020059,2]
[364326178,1749070240823,-921.95,0.00020059,2]
[364326179,1749070240833,-440.0,0.00020059,2]
[364326181,1749070240842,-562.29,0.00020059,2]
[364326183,1749070240851,-605.52,0.00020059,2]
[364326185,1749070240860,-935.16,0.00020059,2]
[364326187,1749070240870,-1400.0,0.00020068,2]
[364326189,1749070240878,-3021.62336575,0.00020072,2]
[364326191,1749070240887,-420.0,0.00020081,2]
[364326193,1749070240897,-285.716703,0.00020187,2]
[364326195,1749070240906,-3021.62336575,0.00020245,2]
[364326197,1749070240915,-524.69,0.00020331,2]
[364326199,1749070240924,-767.16,0.00020331,2]
[364326201,1749070240933,-833.26,0.00020331,2]
[364326203,1749070240942,-927.56,0.00020332,2]
[364326205,1749070240951,-1362.11,0.00020332,2]
[364326207,1749070240960,-875.11,0.00020332,2]
[364326208,1749070240970,-692.79,0.00020332,2]
[364326210,1749070240980,-1022.52,0.00020332,2]
[364326212,1749070240989,-463.31,0.00020332,2]
[364326214,1749070240998,-669.22,0.00020332,2]
[364326216,1749070241007,-557.1,0.00020332,2]
[364326218,1749070241016,-440.0,0.00020332,2]
[364326220,1749070241026,-440.0,0.00020332,2]
[364326222,1749070241035,-440.0,0.00020333,2]
[364326224,1749070241045,-440.0,0.00020333,2]
[364326226,1749070241055,-921.95,0.00020333,2]
[364326228,1749070241064,-440.0,0.00020333,2]
[364326230,1749070241074,-562.29,0.00020333,2]
[364326232,1749070241084,-605.52,0.00020333,2]
[364326234,1749070241094,-935.16,0.00020333,2]
[364326236,1749070241104,-3021.62336575,0.00020417,3]
[364326238,1749070241113,-500.0,0.00020547,2]
[364326240,1749070241122,-3021.62336575,0.0002059,3]
[364326242,1749070241132,-872.61,0.000206,2]
[364326244,1749070241141,-524.69,0.00020605,2]
[364326246,1749070241151,-767.16,0.00020605,2]
[364326248,1749070241160,-833.26,0.00020605,2]
[364326250,1749070241170,-927.56,0.00020606,2]
[364326252,1749070241179,-1362.11,0.00020606,2]
[364326254,1749070241188,-875.11,0.00020606,2]
[364326255,1749070241197,-692.79,0.00020606,2]
[364326257,1749070241207,-1022.52,0.00020606,2]
[364326259,1749070241216,-463.31,0.00020606,2]
[364326261,1749070241225,-669.22,0.00020606,2]
[364326262,1749070241234,-557.1,0.00020606,2]
[364326263,1749070241243,-440.0,0.00020606,2]
[364326264,1749070241252,-421.84,0.00020606,2]
[364326265,1749070241262,-440.0,0.00020607,2]
[364326266,1749070241271,-440.0,0.00020607,2]
[364326267,1749070241280,-921.95,0.00020607,2]
[364326268,1749070241289,-440.0,0.00020607,2]
[364326269,1749070241299,-562.29,0.00020607,2]
[364326270,1749070241308,-605.52,0.00020607,2]
[364326271,1749070241317,-935.16,0.00020607,2]
[364326272,1749070241327,-250.0,0.00020668,2]
[364326273,1749070241337,-153.01138444,0.00020744,2]
[364326274,1749070241346,-3021.62336575,0.00020762,3]
[364326275,1749070241356,-524.69,0.00020879,2]
[364326276,1749070241366,-767.16,0.00020879,2]
[364326277,1749070241376,-833.26,0.00020879,2]
[364326278,1749070241385,-927.56,0.0002088,2]
[364326279,1749070241394,-1362.11,0.0002088,2]
[364326280,1749070241404,-875.11,0.0002088,2]
[364326281,1749070241413,-692.79,0.0002088,2]
[364326282,1749070241423,-1022.52,0.0002088,2]
[364326284,1749070241432,-463.31,0.0002088,2]
[364326285,1749070241442,-669.22,0.0002088,2]
[364326286,1749070241451,-557.1,0.0002088,2]
[364326288,1749070241460,-440.0,0.0002088,2]
[364326289,1749070241469,-440.0,0.00020881,2]
[364326291,1749070241479,-440.0,0.00020881,2]
[364326293,1749070241489,-921.95,0.00020881,2]
[364326295,1749070241499,-440.0,0.00020881,2]
[364326298,1749070241512,-562.29,0.00020881,2]
[364326299,1749070241521,-605.52,0.00020881,2]
[364326301,1749070241530,-935.16,0.00020881,2]
[364326303,1749070241540,-3021.62336575,0.00020934,4]
[364326305,1749070241550,-229.45591648,0.00020951,2]
[364326307,1749070241560,-160.0,0.00020951,2]
[364326310,1749070241570,-160.0,0.00020951,2]
[364326311,1749070241579,-160.0,0.00020951,2]
[364326313,1749070241588,-160.0,0.00020951,2]
[364326315,1749070241598,-160.0,0.00020951,2]
[364326317,1749070241608,-212.90465545,0.00020951,2]
[364326319,1749070241618,-643.41,0.00021095,2]
[364326321,1749070241627,-643.41,0.00021095,2]
[364326323,1749070241636,-643.41,0.00021095,2]
[364326325,1749070241646,-643.41,0.00021095,2]
[364326327,1749070241655,-643.41,0.00021095,2]
[364326329,1749070241664,-643.41,0.00021095,2]
[364326331,1749070241673,-643.41,0.00021095,2]
[364326333,1749070241682,-643.41,0.00021095,2]
[364326335,1749070241692,-643.41,0.00021095,2]
[364326337,1749070241701,-643.41,0.00021095,2]
[364326339,1749070241710,-3021.62336575,0.00021107,4]
[364326341,1749070241719,-524.69,0.00021153,2]
[364326343,1749070241729,-767.16,0.00021153,2]
[364326345,1749070241738,-833.26,0.00021153,2]
[364326347,1749070241748,-927.56,0.00021154,2]
[364326349,1749070241757,-1362.11,0.00021154,2]
[364326351,1749070241766,-643.41,0.00021154,2]
[364326353,1749070241776,-875.11,0.00021154,2]
[364326355,1749070241785,-692.79,0.00021154,2]
[364326357,1749070241794,-1022.52,0.00021154,2]
[364326359,1749070241803,-463.31,0.00021154,2]
[364326361,1749070241812,-669.22,0.00021154,2]
[364326363,1749070241823,-557.1,0.00021154,2]
[364326365,1749070241832,-440.0,0.00021154,2]
[364326367,1749070241841,-440.0,0.00021155,2]
[364326369,1749070241850,-310.21663427,0.00021155,2]
[364326370,1749070241860,-921.95,0.00021155,2]
[364326372,1749070241869,-440.0,0.00021155,2]
[364326374,1749070241878,-562.29,0.00021155,2]
[364326376,1749070241887,-605.52,0.00021155,2]
[364326378,1749070241896,-935.16,0.00021155,2]
[364326380,1749070241905,-1400.0,0.00021164,2]
[364326382,1749070241915,-3021.62336575,0.00021279,5]
[364326384,1749070241924,-524.69,0.00021427,2]
[364326386,1749070241933,-767.16,0.00021427,2]
[364326388,1749070241942,-927.56,0.00021428,2]
[364326390,1749070241951,-1362.11,0.00021428,2]
[364326392,1749070241961,-643.41,0.00021428,2]
[364326394,1749070241970,-875.11,0.00021428,2]
[364326396,1749070241979,-692.79,0.00021428,2]
[364326398,1749070241989,-1022.52,0.00021428,2]
[364326400,1749070241998,-463.31,0.00021428,2]
[364326401,1749070242007,-669.22,0.00021428,2]
[364326403,1749070242016,-557.1,0.00021428,2]
[364326405,1749070242025,-440.0,0.00021428,2]
[364326407,1749070242034,-270.25,0.00021429,2]
[364326409,1749070242044,-921.95,0.00021429,2]
[364326411,1749070242053,-440.0,0.00021429,2]
[364326413,1749070242062,-562.29,0.00021429,2]
[364326415,1749070242071,-605.52,0.00021429,2]
[364326417,1749070242080,-935.16,0.00021429,2]
[364326419,1749070242089,-3021.62336575,0.00021452,5]
[364326421,1749070242098,-3021.62336575,0.00021624,5]
[364326423,1749070242108,-524.69,0.00021701,2]